fUSD/lending_fUSD_20250407
["ID","MTS","AMOUNT","RATE_DAILY","PERIOD"]
[357378643,1744023081192,-189.873309,0.00052876,120]
[357378644,1744023081201,-1048.38,0.00052876,120]
[357378645,1744023081210,-500.0,0.00052876,120]
[357378646,1744023081219,-585.99,0.00052876,120]
[357378647,1744023081228,-500.0,0.00052876,120]
[357378648,1744023081237,-500.0,0.00052876,120]
[357378649,1744023081246,-314.34672121,0.00052876,120]
[357378650,1744023081255,-500.0,0.00052876,120]
[357378651,1744023081263,-500.0,0.00052876,120]
[357378652,1744023081272,-500.0,0.00052876,120]
[357378653,1744023081281,-802.32,0.00052876,120]
[357378654,1744023081291,-500.0,0.00052876,120]
[357378655,1744023081299,-654.14,0.00052876,120]
[357378656,1744023081308,-500.0,0.00052876,120]
[357378657,1744023081317,-502.97,0.00052876,120]
[357378658,1744023081326,-881.01,0.00052876,120]
[357378659,1744023081335,-500.0,0.00052876,120]
[357378660,1744023081344,-500.0,0.00052876,120]
[357378661,1744023081353,-500.0,0.00052876,120]
[357378662,1744023081362,-500.0,0.00052876,120]
[357378663,1744023081371,-500.0,0.00052876,120]
[357378664,1744023081380,-3968.759275,0.00052876,120]
[357378665,1744023081389,-500.0,0.00052876,120]
[357378666,1744023081399,-500.0,0.00052876,120]
[357378667,1744023081408,-650.47,0.00052876,120]
[357378668,1744023081417,-500.0,0.00052876,120]
[357378669,1744023081426,-500.0,0.00052876,120]
[357378670,1744023081435,-500.0,0.00052876,120]
[357378671,1744023081444,-520.18,0.00052876,120]
[357378672,1744023081453,-650.5,0.00052876,120]
[357378673,1744023081462,-500.0,0.00052876,120]
[357378674,1744023081471,-432.33340185,0.00052876,120]
[357378675,1744023081480,-500.0,0.00052876,120]
[357378676,1744023081490,-505.71368501,0.00052876,120]
[357378677,1744023081500,-773.91,0.00052876,120]
[357378678,1744023081510,-500.0,0.00052876,120]
[357378679,1744023081519,-500.0,0.00052876,120]
[357378680,1744023081528,-500.0,0.00052876,120]
[357378681,1744023081537,-686.31,0.00052876,120]
[357378682,1744023081546,-500.0,0.00052876,120]
[357378683,1744023081556,-929.14,0.00052876,120]
[357378684,1744023081565,-500.0,0.00052876,120]
[357378685,1744023081574,-684.26,0.00052876,120]
[357378686,1744023081584,-398.071568,0.00052876,120]
[357378687,1744023081595,-868.85,0.00052876,120]
[357378688,1744023081604,-685.86,0.00052876,120]
[357378689,1744023081614,-543.17,0.00052876,120]
[357378690,1744023081623,-500.0,0.00052876,120]
[357378691,1744023081634,-500.0,0.00052876,120]
[357378692,1744023081643,-500.0,0.00052876,120]
[357378693,1744023081654,-500.0,0.00052876,120]
[357378694,1744023081663,-500.0,0.00052876,120]
[357378695,1744023081672,-500.0,0.00052876,120]
[357378696,1744023081682,-224.27894226,0.00052876,120]
[357378697,1744023081692,-500.0,0.00052876,120]
[357378698,1744023081702,-500.0,0.00052876,120]
[357378699,1744023081711,-563.24,0.00052876,120]
[357378700,1744023081721,-500.0,0.00052876,120]
[357378701,1744023081731,-500.0,0.00052876,120]
[357378702,1744023081740,-500.0,0.00052876,120]
[357378703,1744023081749,-540.20463197,0.00052876,120]
[357378704,1744023081758,-500.0,0.00052876,120]
[357378705,1744023081768,-500.0,0.00052876,120]
[357378706,1744023081777,-553.29,0.00052876,120]
[357378707,1744023081787,-743.95,0.00052876,120]
[357378708,1744023081799,-500.0,0.00052876,120]
[357378709,1744023081808,-500.0,0.00052876,120]
[357378710,1744023081817,-500.0,0.00052876,120]
[357378711,1744023081826,-500.0,0.00052876,120]
[357378712,1744023081837,-614.35,0.00052876,120]
[357378713,1744023081846,-618.56,0.00052876,120]
[357378714,1744023081855,-616.47,0.00052876,120]
[357378715,1744023081864,-500.0,0.00052876,120]
[357378716,1744023081874,-500.0,0.00052876,120]
[357378717,1744023081884,-500.0,0.00052876,120]
[357378718,1744023081893,-500.0,0.00052876,120]
[357378719,1744023081903,-1000.0,0.00052876,120]
[357378720,1744023081912,-500.0,0.00052876,120]
[357378721,1744023081921,-500.0,0.00052876,120]
[357378722,1744023081930,-576.27521214,0.00052876,120]
[357378723,1744023081939,-500.0,0.00052876,120]
[357378724,1744023081948,-500.0,0.00052876,120]
[357378725,1744023081957,-596.25,0.00052876,120]
[357378726,1744023081966,-500.0,0.00052876,120]
[357378727,1744023081976,-225.02358616,0.00052876,120]
[357378728,1744023082118,-148.25267736,0.00052876,120]
[357378729,1744023088651,99.7236231,0.00019,2]
[357378730,1744023088674,150.2763769,0.00019,2]
[357378731,1744023088826,300.0,0.00021,2]
[357378732,1744023089362,350.0,0.00023,2]
[357378733,1744023089800,400.0,0.00025,2]
[357378734,1744023090247,450.0,0.00027,2]
[357378735,1744023090709,299.82,0.00013699,2]
[357378736,1744023090859,299.82,0.00013699,2]
[357378737,1744023091334,299.82,0.00013699,2]
[357378738,1744023091441,299.82,0.00013699,2]
[357378739,1744023091620,299.82,0.00013699,2]
[357378740,1744023091730,299.82,0.00013699,2]
[357378741,1744023091786,299.82,0.00013699,2]
[357378742,1744023091830,299.82,0.00013699,2]
[357378743,1744023091875,299.82,0.00013699,2]
[357378744,1744023091997,299.82,0.00013699,2]
[357378745,1744023092034,299.82,0.00013699,2]
[357378746,1744023092084,299.82,0.00013699,2]
[357378747,1744023092289,299.82,0.00013699,2]
[357378748,1744023092592,299.82,0.00013699,2]
[357378749,1744023092638,299.82,0.00013699,2]
[357378750,1744023092753,299.82,0.00013699,2]
[357378751,1744023093104,299.82,0.00013699,2]
[357378752,1744023093171,299.82,0.00013699,2]
[357378753,1744023093218,299.82,0.00013699,2]
[357378754,1744023093284,299.91214598,0.00013699,2]
[357378755,1744023156603,171.63,0.00013699,2]
[357378756,1744023157010,171.64090546,0.00013699,2]
[357378757,1744023210127,150.13,0.00013699,2]
[357378758,1744023210498,150.13,0.00013699,2]
[357378759,1744023240975,255.6114581,0.00042878,120]
[357378762,1744023424307,1039.0,0.00033,120]
[357378763,1744023436325,941.0,0.00042878,120]
[357378764,1744023949064,2000.0,0.00042887,60]
[357378765,1744024026447,-439.06729427,0.00025384,2]
[357378766,1744024026537,-12.23856698,0.00025384,2]
[357378767,1744024026559,-155.18,0.00026849,2]
[357378768,1744024026579,-162.52,0.00028,2]
[357378769,1744024026600,-500.0,0.00029,2]
[357378770,1744024026623,-550.0,0.00031,2]
[357378771,1744024026644,-250.0,0.000319,2]
[357378772,1744024026664,-155.18,0.00033328,2]
[357378773,1744024026685,-200.0,0.00038,120]
[357378774,1744024026706,-155.18,0.00039807,2]
[357378775,1744024026726,-3629.9792,0.000399,2]
[357378776,1744024026746,-4650.84758566,0.00039999,30]
[357378777,1744024029294,-264.26471177,0.00039999,30]
[357378778,1744024050091,-336.1707699,0.00039707,118]
[357378779,1744024148076,-216.1115894,0.00039707,118]
[357378780,1744024163111,-187.47119051,0.00039707,118]
[357378781,1744024163131,-1873.29770257,0.00039999,30]
[357378782,1744024163151,-299.99,0.00039999,120]
[357378783,1744024163172,-1976.22430455,0.00039999,2]
[357378784,1744024163918,-781.27569545,0.00039999,2]
[357378785,1744024163938,-300.0,0.00039999,5]
[357378786,1744024163957,-325.01,0.00039999,5]
[357378787,1744024163980,-500.0,0.0004,120]
[357378788,1744024164001,-200.0,0.0004,120]
[357378789,1744024164020,-18328.082215,0.00040709,2]
[357378790,1744024164041,-300.0,0.00040736,2]
[357378791,1744024164061,-151.77,0.00040737,2]
[357378792,1744024164082,-262.67,0.00040835,2]
[357378793,1744024164102,-1288.35,0.00040899,2]
[357378794,1744024164122,-573.85,0.00040899,2]
[357378795,1744024164142,-253.93,0.00040966,120]
[357378796,1744024164166,-250.0,0.00041057,120]
[357378797,1744024164186,-164.43,0.0004109,2]
[357378798,1744024164208,-2000.0,0.00041105,120]
[357378799,1744024164231,-200.0,0.000414,120]
[357378800,1744024164253,-1000.0,0.00041418,2]
[357378801,1744024164274,-2509.05262124,0.00041729,2]
[357378802,1744024164294,-318.4567,0.00041899,30]
[357378803,1744024164315,-176.35,0.0004198,2]
[357378804,1744024164336,-3356.701,0.00041999,63]
[357378805,1744024164356,-173.197,0.00041999,63]
[357378806,1744024164377,-868.0,0.00041999,4]
[357378807,1744024164398,-22500.0,0.00042,120]
[357378808,1744024164419,-338.58,0.00042,120]
[357378809,1744024164440,-391.78,0.00042,120]
[357378810,1744024164461,-200.0,0.00042,120]
[357378811,1744024164482,-3000.0,0.00042,30]
[357378812,1744024164502,-1000.0,0.00042015,120]
[357378813,1744024164523,-22500.0,0.00042225,120]
[357378814,1744024164546,-169.13,0.00042285,2]
[357378815,1744024164569,-22500.0,0.0004245,120]
[357378816,1744024164609,-184.85,0.00042497,2]
[357378817,1744024164649,-153.00943709,0.00042672,20]
[357378818,1744024164687,-260.0,0.00042673,6]
[357378819,1744024164728,-11667.80795128,0.00042675,120]
[357378820,1744024208264,781.251478,7.945e-05,2]
[357378836,1744024232015,-278.60975088,0.00042675,120]
[357378861,1744024232656,-4718.10713164,0.00042675,120]
[357378863,1744024232669,-1305.0,0.00042675,120]
[357378884,1744024238444,-1157.90281617,0.00042675,120]
[357378892,1744024238575,-584.99999985,0.00042675,120]
[357378893,1744024238640,-2088.03517194,0.00042675,120]
[357378894,1744024238651,-699.53717824,0.00042675,120]
[357378895,1744024238660,-93.08498342,0.000428,30]
[357378896,1744024238671,-309.90544428,0.000428,30]
[357378897,1744024238682,-797.0095723,0.000428,30]
[357378898,1744024238691,-374.00641968,0.00042887,2]
[357378899,1744024238701,-433.37292758,0.00042887,30]
[357378901,1744024240013,-566.62707242,0.00042887,30]
[357378902,1744024240023,-22500.0,0.000429,120]
[357378903,1744024240033,-154.0,0.00043,90]
[357378904,1744024240043,-539.45638004,0.00043083,2]
[357378905,1744024240052,-20546.76,0.00043125,120]
[357378906,1744024240062,-185.7776112,0.00043257,2]
[357378907,1744024240071,-200.0,0.00043257,2]
[357378908,1744024240081,-23900.0,0.00043283,2]
[357378909,1744024240091,-200.0,0.000434,120]
[357378910,1744024240100,-739.75354979,0.00043454,120]
[357378911,1744024240109,-3586.5017,0.00043462,2]
[357378912,1744024240118,-213.5866,0.00043888,7]
[357378913,1744024240127,-200.0,0.00044,120]
[357378914,1744024240137,-518.5,0.00044435,30]
[357378915,1744024240146,-207.4,0.00044626,2]
[357378916,1744024240155,-557.5788265,0.0004464,30]
[357378917,1744024240164,-176.35,0.00044779,2]
[357378918,1744024240173,-537.6845,0.00044846,30]
[357378919,1744024240182,-681.18826926,0.00044873,30]
[357378920,1744024240194,-500.0,0.00045,120]
[357378921,1744024240203,-151.0,0.00045,120]
[357378922,1744024240212,-151.0,0.00045,120]
[357378923,1744024240221,-500.0,0.00045,120]
[357378924,1744024240231,-500.0,0.00045,120]
[357378925,1744024240240,-1000.0,0.00045,120]
[357378926,1744024240249,-200.0,0.00045297,7]
[357378927,1744024240259,-253.93,0.00045444,120]
[357378933,1744024240503,-215.0738,0.00045995,2]
[357378934,1744024240513,-500.0,0.00046,120]
[357378935,1744024240523,-500.0,0.00046,120]
[357378936,1744024240533,-200.0,0.00046,120]
[357378937,1744024240542,-155.18,0.00046285,2]
[357378938,1744024240551,-1000.0,0.00046408,120]
[357378939,1744024240560,-539.45638004,0.00046442,2]
[357378940,1744024240569,-151.0,0.00046575,30]
[357378941,1744024240578,-151.0,0.00046575,30]
[357378942,1744024240587,-151.0,0.00046575,30]
[357378943,1744024240596,-151.0,0.00046575,30]
[357378944,1744024240606,-151.0,0.00046575,30]
[357378945,1744024240615,-151.0,0.00046575,30]
[357378946,1744024240625,-1000.0,0.00046595,2]
[357378947,1744024240634,-151.0,0.0004675,30]
[357378948,1744024240643,-500.0,0.00046805,30]
[357378949,1744024240653,-1922.2802,0.00046888,30]
[357378950,1744024240663,-2000.0,0.000471,2]
[357378951,1744024240672,-361.09,0.00047102,2]
[357378952,1744024240681,-739.75354979,0.00047201,120]
[357378953,1744024240690,-223.0315306,0.00047364,2]
[357378954,1744024240699,-176.35,0.00047578,2]
[357378955,1744024240708,-500.0,0.00048,120]
[357378956,1744024240718,-200.0,0.00048,120]
[357378957,1744024240727,-300.0,0.00048,120]
[357378958,1744024240736,-231.28369723,0.00048733,2]
[357378959,1744024240745,-500.0,0.00049,120]
[357378960,1744024240755,-2000.0,0.00049,120]
[357378961,1744024240765,-1110.01079694,0.00049093,15]
[357378962,1744024240776,-631.6895,0.00049215,2]
[357378963,1744024240786,-1000.0,0.00049215,2]
[357378964,1744024240795,-364.9361,0.00049215,2]
[357378965,1744024240805,-554.46722363,0.00049315,120]
[357378966,1744024240815,-554.46722363,0.00049315,120]
[357378967,1744024240825,-554.46722363,0.00049315,120]
[357378968,1744024240835,-554.46722363,0.00049315,120]
[357378969,1744024240844,-554.46722363,0.00049315,120]
[357378970,1744024240853,-554.46722363,0.00049315,120]
[357378971,1744024240863,-554.46722363,0.00049315,120]
[357378972,1744024240874,-554.46722363,0.00049315,120]
[357378973,1744024240883,-554.46722363,0.00049315,120]
[357378974,1744024240893,-554.46722363,0.00049315,120]
[357378975,1744024240902,-554.46722363,0.00049315,120]
[357378976,1744024240911,-554.46722363,0.00049315,120]
[357378977,1744024240920,-554.46722363,0.00049315,120]
[357378978,1744024240929,-554.46722363,0.00049315,120]
[357378979,1744024240939,-554.46722363,0.00049315,120]
[357378980,1744024240948,-554.46722363,0.00049315,120]
[357378981,1744024240957,-554.46722363,0.00049315,120]
[357378982,1744024240966,-554.46722363,0.00049315,120]
[357378983,1744024240976,-554.46722363,0.00049315,120]
[357378984,1744024240986,-554.46722363,0.00049315,120]
[357378985,1744024240995,-554.46722363,0.00049315,120]
[357378986,1744024241005,-554.46722363,0.00049315,120]
[357378987,1744024241015,-554.46722363,0.00049315,120]
[357378988,1744024241027,-554.46722363,0.00049315,120]
[357378989,1744024241037,-554.46722363,0.00049315,120]
[357378990,1744024241046,-554.46722363,0.00049315,120]
[357378991,1744024241056,-554.46722363,0.00049315,120]
[357378992,1744024241065,-554.46722363,0.00049315,120]
[357378993,1744024241075,-554.46722363,0.00049315,120]
[357378994,1744024241085,-554.46722363,0.00049315,120]
[357378995,1744024241094,-554.46722363,0.00049315,120]
[357378996,1744024241103,-554.46722363,0.00049315,120]
[357378997,1744024241112,-554.46722363,0.00049315,120]
[357378998,1744024241122,-554.46722363,0.00049315,120]
[357378999,1744024241131,-554.46722363,0.00049315,120]
[357379000,1744024241140,-554.46722363,0.00049315,120]
[357379001,1744024241149,-554.46722363,0.00049315,120]
[357379002,1744024241158,-554.46722363,0.00049315,120]
[357379003,1744024241167,-554.46722363,0.00049315,120]
[357379004,1744024241176,-554.46722363,0.00049315,120]
[357379005,1744024241187,-554.46722363,0.00049315,120]
[357379006,1744024241200,-554.46722363,0.00049315,120]
[357379007,1744024241210,-554.46722363,0.00049315,120]
[357379008,1744024241219,-554.46722363,0.00049315,120]
[357379009,1744024241229,-554.46722363,0.00049315,120]
[357379010,1744024241238,-554.46722363,0.00049315,120]
[357379011,1744024241248,-554.46722363,0.00049315,120]
[357379012,1744024241258,-554.46722363,0.00049315,120]
[357379013,1744024241269,-554.46722363,0.00049315,120]
[357379014,1744024241281,-554.46722363,0.00049315,120]
[357379015,1744024241290,-554.46722363,0.00049315,120]
[357379016,1744024241300,-554.46722363,0.00049315,120]
[357379017,1744024241310,-554.46722363,0.00049315,120]
[357379018,1744024241319,-554.46722363,0.00049315,120]
[357379019,1744024241329,-554.46722363,0.00049315,120]
[357379020,1744024241338,-300.0,0.00049408,120]
[357379021,1744024241348,-382.3628021,0.000495,30]
[357379022,1744024241357,-213.0,0.000498,2]
[357379023,1744024241366,-2840.01,0.000498,48]
[357379024,1744024241375,-2840.01,0.000498,48]
[357379025,1744024241385,-2840.01,0.000498,48]
[357379026,1744024241394,-2840.01,0.000498,48]
[357379027,1744024241403,-2840.01,0.000498,48]
[357379028,1744024241412,-2840.01,0.000498,48]
[357379029,1744024241421,-2840.01,0.000498,48]
[357379030,1744024241431,-2840.01,0.000498,48]
[357379031,1744024241440,-2840.01,0.000498,48]
[357379032,1744024241449,-2840.01,0.000498,48]
[357379033,1744024241459,-2840.01,0.000498,48]
[357379034,1744024241468,-2840.01,0.000498,48]
[357379035,1744024241477,-539.45638004,0.000498,2]
[357379036,1744024241487,-11969.6434221,0.0004989,4]
[357379037,1744024241496,-2000.0,0.000499,2]
[357379038,1744024241505,-1626.05798225,0.000499,15]
[357379039,1744024241515,-253.93,0.00049923,120]
[357379040,1744024241526,-23939.2868442,0.0004999,4]
[357379041,1744024241536,-50000.0,0.0005,50]
[357379042,1744024241545,-200.0,0.0005,120]
[357379043,1744024241554,-1172.5543841,0.0005,2]
[357379044,1744024241563,-2000.0,0.0005,120]
[357379045,1744024241572,-3300.0,0.0005,120]
[357379046,1744024241581,-239.84119403,0.00050102,2]
[357379047,1744024241590,-1208.17442428,0.00050126,15]
[357379048,1744024241599,-1626.05798221,0.00050311,15]
[357379049,1744024241608,-176.35,0.00050376,2]
[357379050,1744024241617,-1626.05798221,0.00050722,15]
[357379051,1744024241626,-1604.70170238,0.000509,23]
[357379052,1744024241635,-739.75354979,0.00050947,120]
[357379053,1744024241646,-11969.6434221,0.00050979,4]
[357379054,1744024241654,-23939.2868442,0.0005099,4]
[357379055,1744024241663,-50000.0,0.00051,51]
[357379056,1744024241673,-300.0,0.00051,120]
[357379057,1744024241682,-1082.38118276,0.00051013,30]
[357379058,1744024241691,-1626.05798221,0.00051133,15]
[357379059,1744024241700,-1004.62499445,0.00051281,30]
[357379060,1744024241709,-1208.17442428,0.00051284,15]
[357379061,1744024241718,-164.43,0.00051362,2]
[357379062,1744024241727,-248.71531821,0.00051471,2]
[357379063,1744024241736,-1626.05798221,0.00051544,15]
[357379064,1744024241745,-1000.0,0.00051772,120]
[357379065,1744024241754,-150.0,0.00051785,7]
[357379066,1744024241763,-150.0,0.00051809,7]
[357379067,1744024241773,-232.90858235,0.00051943,120]
[357379068,1744024241783,-500.0,0.00051943,120]
[357379069,1744024241792,-500.0,0.00051943,120]
[357379070,1744024241802,-457.34379458,0.00051943,31]
[357379071,1744024241811,-500.0,0.00051943,120]
[357379072,1744024241820,-500.0,0.00051943,120]
[357379073,1744024241830,-500.0,0.00051943,120]
[357379074,1744024241840,-500.0,0.00051943,120]
[357379075,1744024241849,-392.8783549,0.00051943,120]
[357379076,1744024241859,-500.0,0.00051943,120]
[357379077,1744024241868,-500.0,0.00051943,120]
[357379078,1744024241877,-500.0,0.00051943,120]
[357379079,1744024241887,-500.0,0.00051943,120]
[357379080,1744024241896,-346.58893794,0.00051943,120]
[357379081,1744024241905,-500.0,0.00051943,120]
[357379082,1744024241915,-5000.0,0.00051944,120]
[357379083,1744024241924,-445.56307612,0.00051953,46]
[357379084,1744024241933,-2228.43554819,0.00051953,120]
[357379085,1744024241942,-1626.05798221,0.00051954,15]
[357379086,1744024241952,-11969.6434221,0.00051963,4]
[357379087,1744024241962,-500.0,0.00051973,120]
[357379088,1744024241973,-500.0,0.00051973,120]
[357379089,1744024241983,-505.94069331,0.00051973,120]
[357379090,1744024241993,-500.0,0.00051973,120]
[357379091,1744024242002,-500.0,0.00051973,120]
[357379092,1744024242012,-500.0,0.00051973,120]
[357379093,1744024242021,-500.0,0.00051973,120]
[357379094,1744024242037,-500.0,0.00051973,120]
[357379095,1744024242046,-500.0,0.00051973,120]
[357379096,1744024242055,-500.0,0.00051973,120]
[357379097,1744024242065,-500.0,0.00051973,120]
[357379098,1744024242074,-23939.2868442,0.0005199,4]
[357379099,1744024242082,-11969.6434221,0.0005199,4]
[357379100,1744024242091,-50000.0,0.00052,52]
[357379101,1744024242100,-844.37,0.00052,120]
[357379102,1744024242110,-200.0,0.00052,120]
[357379103,1744024242119,-20250.54806563,0.00052,120]
[357379104,1744024242128,-1000.0,0.00052,7]
[357379105,1744024242138,-1000.0,0.00052,60]
[357379106,1744024242147,-23939.2868442,0.00052034,4]
[357379107,1744024242155,-151.49,0.00052034,120]
[357379108,1744024242164,-155605.364487,0.00052044,4]
[357379109,1744024242173,-194304.38559836,0.00052044,4]
[357379110,1744024242221,-554.46722363,0.00049315,120]
[357379111,1744024242232,-2445.53277637,0.00052044,4]
[357379112,1744024242254,-1506.0,0.00052044,4]
[357379140,1744024242851,-150.0,0.00050102,2]
[357379141,1744024242861,-19971.23422015,0.00052044,4]
[357379142,1744024243149,-100.75863962,0.00052044,4]
[357379143,1744024243226,-150.0,0.00050126,15]
[357379144,1744024243235,-2162.5587259,0.00052044,4]
[357379161,1744024246021,-150.0,0.00050947,120]
[357379162,1744024246031,-1034.59728369,0.00051003,30]
[357379163,1744024246041,-500.0,0.00051943,120]
[357379164,1744024246051,-500.0,0.00051943,120]
[357379165,1744024246060,-500.0,0.00051943,120]
[357379166,1744024246069,-180.94509623,0.00051943,120]
[357379167,1744024246078,-500.0,0.00051943,120]
[357379168,1744024246088,-179.72831527,0.00051943,120]
[357379169,1744024246225,-320.27168473,0.00051943,120]
[357379170,1744024246235,-428.46831527,0.00051943,120]
[357379171,1744024246247,-71.53168473,0.00051943,120]
[357379172,1744024246256,-500.0,0.00051943,120]
[357379173,1744024246266,-105.95831497,0.00051943,120]
[357379174,1744024246322,-29.36274569,0.00051943,120]
[357379175,1744024246385,-150.0,0.00050979,4]
[357379176,1744024246394,-256.71979454,0.00051943,120]
[357379177,1744024246403,-47.32001134,0.00051943,120]
[357379178,1744024246415,-452.67998866,0.00051943,120]
[357379179,1744024246425,-500.0,0.00051943,120]
[357379180,1744024246434,-500.0,0.00051943,120]
[357379181,1744024246443,-500.0,0.00051943,120]
[357379182,1744024246452,-912.19240825,0.00051973,120]
[357379183,1744024246462,-1.90592647,0.00051973,120]
[357379184,1744024246473,-910.28648178,0.00051973,120]
[357379185,1744024246482,-529.76515796,0.00051973,120]
[357379186,1744024246493,-382.42725029,0.00051973,120]
[357379187,1744024246502,-68.53626662,0.00051973,120]
[357379190,1744024401908,150.0,0.00042887,30]
[357379191,1744024873185,250.0,0.00019,2]
[357379192,1744025108555,2315.28831065,0.0002,2]
[357379193,1744025128765,2000.0,0.00011,2]
[357379194,1744025128788,434.07376933,0.00011,2]
[357379195,1744025143493,2314.14678669,0.00042883,30]
[357379196,1744025156137,-717.41236136,0.0002,2]
[357379197,1744025193482,500.0,0.00042883,120]
[357379198,1744025212056,500.0,0.00042883,120]
[357379199,1744025230012,500.0,0.00042883,120]
[357379200,1744025242307,-278.99962706,0.000196,7]
[357379201,1744025243584,-21.00037294,0.000196,7]
[357379202,1744025243618,-300.0,0.00019999,2]
[357379203,1744025243656,-232.90858235,0.00019999,2]
[357379204,1744025243703,-1230.88989148,0.0002,2]
[357379205,1744025243799,500.0,0.00042883,120]
[357379206,1744025252055,582.20552156,0.00042883,120]
[357379208,1744025283331,-158.127,0.000181,2]
[357379209,1744025291685,-180.11088784,0.000181,2]
[357379210,1744025292244,705.42553194,0.00042883,30]
[357379211,1744025293134,500.0,0.00042883,120]
[357379212,1744025297467,158.127,0.00013699,2]
[357379214,1744025316641,500.0,0.00042883,120]
[357379215,1744025318732,500.0,0.00042883,120]
[357379216,1744025320886,500.0,0.00042883,120]
[357379217,1744025336410,500.0,0.00042883,120]
[357379218,1744025342458,500.0,0.00042882,120]
[357379219,1744025347098,-58.47456453,0.000181,2]
[357379220,1744025347119,-700.0,0.000197,7]
[357379221,1744025347142,-1000.0,0.000198,7]
[357379222,1744025347163,-1400.0,0.000199,7]
[357379223,1744025347184,-3586.5017,0.000199,2]
[357379224,1744025347204,-300.0,0.00019972,2]
[357379225,1744025347223,-406.28702162,0.00019973,2]
[357379226,1744025347243,-616.49204585,0.00019973,2]
[357379227,1744025354088,-14.90291555,0.00019973,2]
[357379228,1744025354109,-289.98355149,0.00019973,2]
[357379229,1744025354130,-625.31369011,0.00019973,2]
[357379230,1744025354150,-500.0,0.00019973,2]
[357379231,1744025354171,-500.0,0.00019973,2]
[357379232,1744025354194,-39634.58542661,0.0002,2]
[357379233,1744025356099,-253301.13430021,0.0002,2]
[357379234,1744025360213,-29100.30342013,0.0002,2]
[357379235,1744025367147,-325531.1374,0.0002,2]
[357379236,1744025371121,-110423.6079909,0.0002,2]
[357379237,1744025372338,220263.470199,0.00042882,30]
[357379238,1744025374117,-34605.61507993,0.0002,2]
[357379257,1744025432016,-159.32109427,0.0001999,2]
[357379258,1744025432025,-300.0,0.00019999,2]
[357379259,1744025432035,-52.85650181,0.0002,2]
[357379260,1744025432064,-2439.84432,0.0002,2]
[357379261,1744025432123,-3614.97335,0.0002,2]
[357379262,1744025432179,-1370.27702611,0.0002,2]
[357379263,1744025432190,-641.60804426,0.0002,2]
[357379277,1744025437961,-457.2377649,0.0002,2]
[357379278,1744025437978,-1350.1075,0.0002,2]
[357379279,1744025438021,-837.3995428,0.0002,2]
[357379280,1744025438033,-6326.45723467,0.0002,2]
[357379281,1744025438086,-3860.3565,0.0002,2]
[357379282,1744025438260,-1687.77728508,0.0002,2]
[357379283,1744025438271,-1694.88042909,0.0002,2]
[357379284,1744025438316,-14017.78665741,0.0002,2]
[357379297,1744025440210,-1710.19466749,0.0002,2]
[357379298,1744025440226,-1203.2499875,0.0002,2]
[357379299,1744025440238,-11430.40009571,0.0002,2]
[357379300,1744025440426,-410.77993,0.0002,2]
[357379301,1744025440436,-482.56,0.0002,2]
[357379302,1744025440447,-510.1169997,0.0002,2]
[357379303,1744025440534,-1768237.71275266,0.0002,2]
[357379304,1744025440544,-151.37,0.0002,2]
[357379305,1744025440558,-151.37,0.0002,2]
[357379306,1744025440568,-151.37,0.0002,2]
[357379307,1744025440578,-151.37,0.0002,2]